[Event "*** Titled Tuesday Blitz"]
[Site "Chess.com"]
[Date "2019.05.07"]
[Round "4"]
[White "PE-TRO"]
[Black "eldur16"]
[Result "1/2-1/2"]
[WhiteElo "2798"]
[BlackElo "2540"]
[TimeControl "180+2"]
[EndTime "13:57:59 PDT"]
[Termination "Game drawn by agreement"]

1. Nf3 {[%clk 0:03:01.5]} 1... Nf6 {[%clk 0:02:59.8]} 2. c4 {[%clk 0:03:03.4]}
2... c5 {[%clk 0:03:00]} 3. g3 {[%clk 0:03:04.8]} 3... b6 {[%clk 0:02:59.6]} 4.
Bg2 {[%clk 0:03:05.8]} 4... Bb7 {[%clk 0:03:00.4]} 5. O-O {[%clk 0:03:07.7]}
5... g6 {[%clk 0:03:01.3]} 6. b3 {[%clk 0:03:08.8]} 6... Bg7 {[%clk 0:03:02.2]}
7. Bb2 {[%clk 0:03:09.8]} 7... O-O {[%clk 0:03:02.9]} 8. Nc3 {[%clk 0:03:11]}
8... Na6 {[%clk 0:03:03.5]} 9. e3 {[%clk 0:03:11.8]} 9... e6 {[%clk 0:03:03]}
10. Rc1 {[%clk 0:03:09.4]} 10... d5 {[%clk 0:03:02.7]} 11. cxd5 {[%clk
0:03:09.9]} 11... exd5 {[%clk 0:03:03]} 12. d4 {[%clk 0:03:10.5]} 12... Qe7
{[%clk 0:03:02.4]} 13. Ba3 {[%clk 0:03:06.9]} 13... Rac8 {[%clk 0:02:55.4]} 14.
Na4 {[%clk 0:03:01.1]} 14... Ne4 {[%clk 0:02:51.2]} 15. Nd2 {[%clk 0:03:01]}
15... Rfd8 {[%clk 0:02:45.9]} 16. Qe2 {[%clk 0:02:56.8]} 16... Nxd2 {[%clk
0:02:27.9]} 17. Qxd2 {[%clk 0:02:56.8]} 17... Bc6 {[%clk 0:02:28.1]} 18. dxc5
{[%clk 0:02:54.3]} 18... Bxa4 {[%clk 0:02:25.4]} 19. bxa4 {[%clk 0:02:54.4]}
19... Nxc5 {[%clk 0:02:25.9]} 20. a5 {[%clk 0:02:50.2]} 20... Qe6 {[%clk
0:02:22.4]} 21. axb6 {[%clk 0:02:50]} 21... axb6 {[%clk 0:02:22.6]} 22. Rfd1
{[%clk 0:02:30.2]} 22... d4 {[%clk 0:02:18.4]} 23. exd4 {[%clk 0:02:21.5]} 23...
Rxd4 {[%clk 0:02:17.2]} 24. Qe1 {[%clk 0:02:07.3]} 24... Qxe1+ {[%clk
0:02:08.4]} 25. Rxe1 {[%clk 0:02:08]} 25... Rd2 {[%clk 0:02:05.5]} 26. Bxc5
{[%clk 0:01:24.6]} 26... bxc5 {[%clk 0:02:03.5]} 27. Red1 {[%clk 0:01:08.4]}
27... Rxa2 {[%clk 0:01:59.9]} 28. Bb7 {[%clk 0:01:00]} 28... Rc7 {[%clk
0:01:44]} 29. Rd8+ {[%clk 0:00:59]} 29... Bf8 {[%clk 0:01:43.7]} 30. Bd5 {[%clk
0:00:58.7]} 30... Re2 {[%clk 0:01:33.9]} 31. Bc4 {[%clk 0:00:56.7]} 31... Re4
{[%clk 0:01:09.3]} 32. Bd3 {[%clk 0:00:57.1]} 32... Rb4 {[%clk 0:01:06]} 33. Rc4
{[%clk 0:00:44.6]} 33... Kg7 {[%clk 0:01:03.3]} 34. Kg2 {[%clk 0:00:44]} 34...
Be7 {[%clk 0:01:02.8]} 35. Rd5 {[%clk 0:00:44.2]} 35... h5 {[%clk 0:00:56.5]}
36. Kf3 {[%clk 0:00:37.9]} 36... Ra7 {[%clk 0:00:56.2]} 37. Rc2 {[%clk
0:00:26.8]} 37... Rb3 {[%clk 0:00:36.2]} 38. Ke2 {[%clk 0:00:27.5]} 38... Rba3
{[%clk 0:00:36.9]} 39. Bc4 {[%clk 0:00:28.4]} 39... Ra1 {[%clk 0:00:34.8]} 40.
h4 {[%clk 0:00:29.1]} 40... Rc7 {[%clk 0:00:31.7]} 41. Bd3 {[%clk 0:00:27.7]}
41... Ra5 {[%clk 0:00:29]} 42. Kf3 {[%clk 0:00:27.4]} 42... Bf6 {[%clk
0:00:28.9]} 43. Kg2 {[%clk 0:00:26.8]} 43... Ra3 {[%clk 0:00:27.3]} 44. Bf1
{[%clk 0:00:27.1]} 44... Rc3 {[%clk 0:00:25.1]} 45. Rxc3 {[%clk 0:00:26]} 45...
Bxc3 {[%clk 0:00:25.1]} 46. Bc4 {[%clk 0:00:27.1]} 46... Bd4 {[%clk 0:00:25.8]}
47. Rd6 {[%clk 0:00:19.6]} 47... Rb7 {[%clk 0:00:26.2]} 48. f4 {[%clk
0:00:20.9]} 48... Rb4 {[%clk 0:00:26.1]} 49. Bd5 {[%clk 0:00:21.2]} 49... Rb2+
{[%clk 0:00:26.1]} 50. Kh1 {[%clk 0:00:22.3]} 50... Bf2 {[%clk 0:00:25]} 51. Kg2
{[%clk 0:00:17.1]} 51... Be1+ {[%clk 0:00:25.2]} 52. Kh3 {[%clk 0:00:15.1]}
52... Rd2 {[%clk 0:00:25.8]} 53. Rd7 {[%clk 0:00:15.8]} 53... Kh6 {[%clk
0:00:26.6]} 54. f5 {[%clk 0:00:15.1]} 54... c4 {[%clk 0:00:24.8]} 55. fxg6
{[%clk 0:00:13.9]} 55... fxg6 {[%clk 0:00:25.2]} 56. Be6 {[%clk 0:00:15]} 56...
Rxd7 {[%clk 0:00:23.2]} 57. Bxd7 {[%clk 0:00:16.9]} 57... Kg7 {[%clk 0:00:23.2]}
58. Ba4 {[%clk 0:00:17.7]} 58... Kf6 {[%clk 0:00:23.7]} 59. Bc2 {[%clk
0:00:19.1]} 59... g5 {[%clk 0:00:23.4]} 60. hxg5+ {[%clk 0:00:18.8]} 60... Kxg5
{[%clk 0:00:24.3]} 61. Bd1 {[%clk 0:00:19.2]} 61... c3 {[%clk 0:00:24.7]} 62.
Bc2 {[%clk 0:00:19.9]} 62... h4 {[%clk 0:00:24.2]} 63. gxh4+ {[%clk 0:00:20.4]}
63... Bxh4 {[%clk 0:00:23.4]} 1/2-1/2

[Event "*** Titled Tuesday Blitz"]
[Site "Chess.com"]
[Date "2019.05.07"]
[Round "4"]
[White "MasterKroket"]
[Black "M1711"]
[Result "0-1"]
[WhiteElo "2348"]
[BlackElo "2449"]
[TimeControl "180+2"]
[EndTime "13:58:01 PDT"]
[Termination "M1711 won by resignation"]

1. d4 {[%clk 0:03:00.8]} 1... Nf6 {[%clk 0:03:01]} 2. c4 {[%clk 0:03:02.2]} 2...
g6 {[%clk 0:03:01.8]} 3. Nc3 {[%clk 0:03:02.5]} 3... d5 {[%clk 0:03:02.9]} 4.
cxd5 {[%clk 0:03:04.4]} 4... Nxd5 {[%clk 0:03:04.8]} 5. e4 {[%clk 0:03:06]} 5...
Nxc3 {[%clk 0:03:06.1]} 6. bxc3 {[%clk 0:03:07.9]} 6... Bg7 {[%clk 0:03:08]} 7.
Be3 {[%clk 0:03:09.5]} 7... c5 {[%clk 0:03:09.3]} 8. Qd2 {[%clk 0:03:11]} 8...
Qa5 {[%clk 0:03:10.3]} 9. Nf3 {[%clk 0:03:12.3]} 9... Nc6 {[%clk 0:03:05.3]} 10.
Rc1 {[%clk 0:03:11.7]} 10... Bg4 {[%clk 0:03:03]} 11. d5 {[%clk 0:03:08.8]}
11... Rd8 {[%clk 0:03:03.3]} 12. Ng5 {[%clk 0:03:00.9]} 12... O-O {[%clk
0:02:48.6]} 13. h3 {[%clk 0:02:59.6]} 13... Bc8 {[%clk 0:02:42.4]} 14. Be2
{[%clk 0:03:00.7]} 14... e6 {[%clk 0:02:40.4]} 15. O-O {[%clk 0:02:59.1]} 15...
exd5 {[%clk 0:02:40.2]} 16. exd5 {[%clk 0:03:00.2]} 16... Ne7 {[%clk 0:02:31.3]}
17. c4 {[%clk 0:02:42.8]} 17... Qxd2 {[%clk 0:02:30.1]} 18. Bxd2 {[%clk
0:02:44.7]} 18... Nf5 {[%clk 0:02:10.6]} 19. Bf4 {[%clk 0:02:37.3]} 19... Nd4
{[%clk 0:01:48.3]} 20. Bd3 {[%clk 0:02:38.4]} 20... Bf5 {[%clk 0:01:44.4]} 21.
Bxf5 {[%clk 0:02:30.4]} 21... Ne2+ {[%clk 0:01:28.8]} 22. Kh1 {[%clk 0:02:29]}
22... Nxc1 {[%clk 0:01:29.7]} 23. Bg4 {[%clk 0:02:11.5]} 23... Nxa2 {[%clk
0:01:24]} 24. Bc7 {[%clk 0:02:12.5]} 24... b5 {[%clk 0:00:57.9]} 25. Bxd8 {[%clk
0:01:31.6]} 25... Rxd8 {[%clk 0:00:59.8]} 26. cxb5 {[%clk 0:01:33.1]} 26... Rxd5
{[%clk 0:00:53.7]} 27. Ne4 {[%clk 0:01:34.1]} 27... c4 {[%clk 0:00:39.5]} 28.
Be2 {[%clk 0:01:30.6]} 28... Rd4 {[%clk 0:00:34.7]} 29. f3 {[%clk 0:01:23.7]}
29... f5 {[%clk 0:00:26.7]} 30. Ng5 {[%clk 0:01:17.2]} 30... Nc3 {[%clk
0:00:27]} 31. Re1 {[%clk 0:01:06.2]} 31... Nxe2 {[%clk 0:00:11.8]} 32. Rxe2
{[%clk 0:01:08.1]} 32... Rd8 {[%clk 0:00:08.2]} 33. Re6 {[%clk 0:00:28.2]} 33...
h6 {[%clk 0:00:05.2]} 34. Rc6 {[%clk 0:00:20]} 34... hxg5 {[%clk 0:00:06]} 35.
Rxc4 {[%clk 0:00:21.7]} 35... Be5 {[%clk 0:00:07]} 36. g4 {[%clk 0:00:21.1]}
36... Kf7 {[%clk 0:00:05.4]} 37. Ra4 {[%clk 0:00:20.7]} 37... Rd7 {[%clk
0:00:06.8]} 38. Ra6 {[%clk 0:00:21.6]} 38... Rb7 {[%clk 0:00:07.1]} 39. Kg2
{[%clk 0:00:21.9]} 39... Bb8 {[%clk 0:00:06]} 40. Ra5 {[%clk 0:00:22.5]} 40...
Bc7 {[%clk 0:00:07.4]} 41. Ra6 {[%clk 0:00:23.2]} 41... Bb6 {[%clk 0:00:08.7]}
42. Kg3 {[%clk 0:00:21.5]} 42... Rc7 {[%clk 0:00:09]} 43. Ra3 {[%clk 0:00:20.4]}
43... Rc2 {[%clk 0:00:08.1]} 44. gxf5 {[%clk 0:00:20.5]} 44... gxf5 {[%clk
0:00:08.2]} 45. f4 {[%clk 0:00:18.4]} 45... gxf4+ {[%clk 0:00:04.6]} 46. Kxf4
{[%clk 0:00:19.2]} 46... Kf6 {[%clk 0:00:06.5]} 47. Rd3 {[%clk 0:00:18.9]} 47...
Rc4+ {[%clk 0:00:07.3]} 48. Kf3 {[%clk 0:00:19.5]} 48... Rb4 {[%clk 0:00:08.6]}
49. Rd6+ {[%clk 0:00:20.8]} 49... Ke5 {[%clk 0:00:09.7]} 50. Rd1 {[%clk
0:00:18.9]} 50... Rxb5 {[%clk 0:00:10.8]} 51. h4 {[%clk 0:00:20.4]} 51... Rb3+
{[%clk 0:00:11.1]} 52. Kg2 {[%clk 0:00:21.8]} 52... Kf4 {[%clk 0:00:10.1]} 53.
Rf1+ {[%clk 0:00:22.5]} 53... Kg4 {[%clk 0:00:11.4]} 54. h5 {[%clk 0:00:23.8]}
54... Rg3+ {[%clk 0:00:11]} 55. Kh2 {[%clk 0:00:23.9]} 55... Rh3+ {[%clk
0:00:12.1]} 56. Kg2 {[%clk 0:00:25.4]} 56... Rxh5 {[%clk 0:00:13.7]} 57. Rb1
{[%clk 0:00:23.2]} 57... f4 {[%clk 0:00:11.1]} 58. Rb3 {[%clk 0:00:24.1]} 58...
Rd5 {[%clk 0:00:09.8]} 59. Rb2 {[%clk 0:00:22.7]} 59... Be3 {[%clk 0:00:10.2]}
60. Rc2 {[%clk 0:00:19.5]} 60... Rd2+ {[%clk 0:00:10.3]} 61. Rxd2 {[%clk
0:00:20]} 61... Bxd2 {[%clk 0:00:12.2]} 0-1

[Event "*** Titled Tuesday Blitz"]
[Site "Chess.com"]
[Date "2019.05.07"]
[Round "4"]
[White "Slovak_fighter2000"]
[Black "Denis_Palkovich"]
[Result "1/2-1/2"]
[WhiteElo "2436"]
[BlackElo "2264"]
[TimeControl "180+2"]
[EndTime "13:58:04 PDT"]
[Termination "Game drawn by repetition"]

1. d4 {[%clk 0:03:01.9]} 1... d5 {[%clk 0:02:55.9]} 2. c4 {[%clk 0:03:03.1]}
2... Bf5 {[%clk 0:02:54.2]} 3. Nf3 {[%clk 0:03:01.5]} 3... e6 {[%clk 0:02:54.3]}
4. Nc3 {[%clk 0:03:00.9]} 4... Bb4 {[%clk 0:02:54.2]} 5. Qb3 {[%clk 0:03:01]}
5... Nc6 {[%clk 0:02:53.5]} 6. e3 {[%clk 0:03:01.7]} 6... a5 {[%clk 0:02:53.8]}
7. a3 {[%clk 0:02:57.6]} 7... a4 {[%clk 0:02:47.2]} 8. Qd1 {[%clk 0:02:58.1]}
8... Bxc3+ {[%clk 0:02:42.6]} 9. bxc3 {[%clk 0:02:58.9]} 9... Nf6 {[%clk
0:02:41.1]} 10. Be2 {[%clk 0:02:57.9]} 10... O-O {[%clk 0:02:40.2]} 11. O-O
{[%clk 0:02:58.5]} 11... Ne4 {[%clk 0:02:40.9]} 12. Bd2 {[%clk 0:02:57.5]} 12...
Na5 {[%clk 0:02:33]} 13. cxd5 {[%clk 0:02:51.1]} 13... Nb3 {[%clk 0:02:31.5]}
14. dxe6 {[%clk 0:02:42.1]} 14... Nxa1 {[%clk 0:01:58.5]} 15. exf7+ {[%clk
0:02:42.5]} 15... Rxf7 {[%clk 0:01:57.6]} 16. Qxa1 {[%clk 0:02:39.7]} 16... Kh8
{[%clk 0:01:45.4]} 17. Ne5 {[%clk 0:02:21]} 17... Rf8 {[%clk 0:01:32.7]} 18. Be1
{[%clk 0:02:20.7]} 18... Nd6 {[%clk 0:01:17.6]} 19. f3 {[%clk 0:02:15.9]} 19...
Nf7 {[%clk 0:01:17.9]} 20. Bg3 {[%clk 0:02:11]} 20... Nxe5 {[%clk 0:01:15.8]}
21. Bxe5 {[%clk 0:02:12.9]} 21... c5 {[%clk 0:01:14.6]} 22. e4 {[%clk
0:01:58.6]} 22... Bg6 {[%clk 0:01:15.1]} 23. d5 {[%clk 0:01:55]} 23... Qe7
{[%clk 0:01:13.1]} 24. c4 {[%clk 0:01:50.8]} 24... Rfe8 {[%clk 0:00:55.9]} 25.
Bc3 {[%clk 0:01:48.5]} 25... Ra6 {[%clk 0:00:54]} 26. e5 {[%clk 0:01:45.7]}
26... Rb6 {[%clk 0:00:51]} 27. f4 {[%clk 0:01:42.6]} 27... Bf5 {[%clk
0:00:45.9]} 28. e6 {[%clk 0:01:36.8]} 28... Kg8 {[%clk 0:00:42.4]} 29. g4 {[%clk
0:00:58]} 29... Be4 {[%clk 0:00:40.1]} 30. f5 {[%clk 0:00:40.4]} 30... Qg5
{[%clk 0:00:39.4]} 31. Qc1 {[%clk 0:00:32.6]} 31... Qh4 {[%clk 0:00:27.9]} 32.
Qf4 {[%clk 0:00:32.2]} 32... Bc2 {[%clk 0:00:20.3]} 33. d6 {[%clk 0:00:28.9]}
33... h5 {[%clk 0:00:16.1]} 34. d7 {[%clk 0:00:28.8]} 34... Rd8 {[%clk 0:00:16]}
35. gxh5 {[%clk 0:00:13.3]} 35... Qxf4 {[%clk 0:00:12.5]} 36. Rxf4 {[%clk
0:00:14.2]} 36... Kf8 {[%clk 0:00:10.4]} 37. Be5 {[%clk 0:00:14.1]} 37... Bxf5
{[%clk 0:00:07.3]} 38. Rxf5+ {[%clk 0:00:14.4]} 38... Ke7 {[%clk 0:00:09]} 39.
Bc7 {[%clk 0:00:09.8]} 39... Rxe6 {[%clk 0:00:07.6]} 40. Bxd8+ {[%clk 0:00:10]}
40... Kxd8 {[%clk 0:00:09]} 41. Rd5 {[%clk 0:00:09.3]} 41... Rxe2 {[%clk
0:00:09.5]} 42. Rxc5 {[%clk 0:00:06.9]} 42... Kxd7 {[%clk 0:00:10]} 43. Rg5
{[%clk 0:00:06.2]} 43... Re7 {[%clk 0:00:05.8]} 44. Rb5 {[%clk 0:00:04.6]} 44...
Kc6 {[%clk 0:00:06.5]} 45. Kf2 {[%clk 0:00:05.6]} 45... Re4 {[%clk 0:00:06.1]}
46. Rb4 {[%clk 0:00:06.1]} 46... Rh4 {[%clk 0:00:06.5]} 47. Kg3 {[%clk
0:00:07.3]} 47... Rxh5 {[%clk 0:00:07.7]} 48. Rxa4 {[%clk 0:00:08.6]} 48... b6
{[%clk 0:00:06.6]} 49. Rb4 {[%clk 0:00:09.3]} 49... Re5 {[%clk 0:00:03.4]} 50.
h4 {[%clk 0:00:09.9]} 50... Re3+ {[%clk 0:00:04]} 51. Kg4 {[%clk 0:00:10.7]}
51... Rxa3 {[%clk 0:00:05.9]} 52. Kh5 {[%clk 0:00:08.8]} 52... Ra1 {[%clk
0:00:05.8]} 53. Rb2 {[%clk 0:00:08.2]} 53... Rg1 {[%clk 0:00:06.7]} 54. Rf2
{[%clk 0:00:07.9]} 54... Kc5 {[%clk 0:00:08]} 55. Rf4 {[%clk 0:00:08.3]} 55...
Rg2 {[%clk 0:00:07.9]} 56. Re4 {[%clk 0:00:08.4]} 56... Rg1 {[%clk 0:00:08.7]}
57. Rf4 {[%clk 0:00:07.9]} 57... Rg2 {[%clk 0:00:09.7]} 58. Re4 {[%clk
0:00:05.3]} 58... Rg1 {[%clk 0:00:10.7]} 59. Rf4 {[%clk 0:00:04.9]} 1/2-1/2

[Event "*** Titled Tuesday Blitz"]
[Site "Chess.com"]
[Date "2019.05.07"]
[Round "4"]
[White "Oleg_Papayan"]
[Black "cherryandmint"]
[Result "1/2-1/2"]
[WhiteElo "2536"]
[BlackElo "2678"]
[TimeControl "180+2"]
[EndTime "13:58:15 PDT"]
[Termination "Game drawn by stalemate"]

1. e4 {[%clk 0:03:01.9]} 1... e5 {[%clk 0:02:58.9]} 2. Nf3 {[%clk 0:02:58.4]}
2... Nc6 {[%clk 0:03:00.1]} 3. Bb5 {[%clk 0:02:59.4]} 3... a6 {[%clk 0:03:00.7]}
4. Bxc6 {[%clk 0:03:00.7]} 4... dxc6 {[%clk 0:03:02.6]} 5. Nc3 {[%clk
0:03:02.1]} 5... Bd6 {[%clk 0:03:03.1]} 6. d4 {[%clk 0:03:03.3]} 6... exd4
{[%clk 0:02:58.2]} 7. Qxd4 {[%clk 0:03:05.2]} 7... f6 {[%clk 0:02:59.4]} 8. Be3
{[%clk 0:03:05.4]} 8... Ne7 {[%clk 0:02:53.6]} 9. O-O-O {[%clk 0:03:05.9]} 9...
Ng6 {[%clk 0:02:53.3]} 10. h4 {[%clk 0:02:52.9]} 10... Qe7 {[%clk 0:02:53.6]}
11. h5 {[%clk 0:02:53.3]} 11... Ne5 {[%clk 0:02:54]} 12. h6 {[%clk 0:02:46.4]}
12... g5 {[%clk 0:02:46.3]} 13. Nxe5 {[%clk 0:02:37.1]} 13... Bxe5 {[%clk
0:02:45.9]} 14. Qd2 {[%clk 0:02:26.6]} 14... Bd7 {[%clk 0:02:27.7]} 15. Bd4
{[%clk 0:02:15.2]} 15... O-O-O {[%clk 0:02:24.5]} 16. Bxe5 {[%clk 0:02:16.1]}
16... Qxe5 {[%clk 0:02:26]} 17. Qd4 {[%clk 0:02:04.3]} 17... b6 {[%clk
0:02:18.9]} 18. Qxe5 {[%clk 0:01:59.3]} 18... fxe5 {[%clk 0:02:19.7]} 19. f3
{[%clk 0:01:58.8]} 19... Rdf8 {[%clk 0:02:14.7]} 20. Rh5 {[%clk 0:01:47.4]}
20... Rhg8 {[%clk 0:02:11.1]} 21. Rd3 {[%clk 0:01:36.4]} 21... Be8 {[%clk
0:01:59.3]} 22. Rh2 {[%clk 0:01:25]} 22... g4 {[%clk 0:01:59.8]} 23. Nd1 {[%clk
0:01:19]} 23... c5 {[%clk 0:01:45.9]} 24. Nc3 {[%clk 0:00:44.3]} 24... gxf3
{[%clk 0:01:29.2]} 25. Rxf3 {[%clk 0:00:43.5]} 25... Rxf3 {[%clk 0:01:24.3]} 26.
gxf3 {[%clk 0:00:45.4]} 26... Rg3 {[%clk 0:01:25]} 27. Nd5 {[%clk 0:00:40.2]}
27... Kd8 {[%clk 0:00:51.5]} 28. Nf6 {[%clk 0:00:37.6]} 28... Bg6 {[%clk
0:00:49.2]} 29. Ng4 {[%clk 0:00:28.8]} 29... Rxf3 {[%clk 0:00:49.9]} 30. Nxe5
{[%clk 0:00:29.7]} 30... Rf1+ {[%clk 0:00:51.5]} 31. Kd2 {[%clk 0:00:30.4]}
31... Bxe4 {[%clk 0:00:53.4]} 32. Ke3 {[%clk 0:00:22.4]} 32... Bf5 {[%clk
0:00:47.3]} 33. Rg2 {[%clk 0:00:20.4]} 33... Ke7 {[%clk 0:00:36.2]} 34. Rg7+
{[%clk 0:00:20.4]} 34... Ke6 {[%clk 0:00:36.6]} 35. Nf7 {[%clk 0:00:20]} 35...
Bxc2 {[%clk 0:00:31.2]} 36. Ng5+ {[%clk 0:00:21]} 36... Kd6 {[%clk 0:00:32]} 37.
Nxh7 {[%clk 0:00:21.5]} 37... Rh1 {[%clk 0:00:30.4]} 38. Kd2 {[%clk 0:00:21.1]}
38... Bb1 {[%clk 0:00:30.8]} 39. Ng5 {[%clk 0:00:21.5]} 39... Kc6 {[%clk
0:00:31.9]} 40. h7 {[%clk 0:00:22.6]} 40... Bxa2 {[%clk 0:00:27]} 41. Rg8 {[%clk
0:00:20.8]} 41... Rh2+ {[%clk 0:00:26.5]} 42. Ke1 {[%clk 0:00:21]} 42... Rh1+
{[%clk 0:00:27.2]} 43. Kf2 {[%clk 0:00:22]} 43... Rxh7 {[%clk 0:00:25.4]} 44.
Rg6+ {[%clk 0:00:22.6]} 44... Kb5 {[%clk 0:00:26.8]} 45. Nxh7 {[%clk 0:00:24]}
45... Bb1 {[%clk 0:00:28.7]} 46. Rg7 {[%clk 0:00:24.5]} 46... Kb4 {[%clk
0:00:29.3]} 47. Rxc7 {[%clk 0:00:24.8]} 47... c4 {[%clk 0:00:25.5]} 48. Nf6
{[%clk 0:00:25.9]} 48... Kb3 {[%clk 0:00:25.9]} 49. Nd5 {[%clk 0:00:26.5]} 49...
b5 {[%clk 0:00:27.2]} 50. Ke3 {[%clk 0:00:26.2]} 50... Kxb2 {[%clk 0:00:25.4]}
51. Kd4 {[%clk 0:00:27.6]} 51... a5 {[%clk 0:00:24.9]} 52. Rb7 {[%clk
0:00:28.9]} 52... b4 {[%clk 0:00:23.2]} 53. Kxc4 {[%clk 0:00:22.2]} 53... Ba2+
{[%clk 0:00:20]} 54. Kd4 {[%clk 0:00:23.6]} 54... Bxd5 {[%clk 0:00:18.9]} 55.
Kxd5 {[%clk 0:00:25.1]} 55... b3 {[%clk 0:00:18.9]} 56. Kc4 {[%clk 0:00:26.3]}
56... a4 {[%clk 0:00:20.3]} 57. Rh7 {[%clk 0:00:27.5]} 57... Ka2 {[%clk
0:00:19.6]} 58. Rb7 {[%clk 0:00:09.7]} 58... b2 {[%clk 0:00:19.5]} 59. Kc3
{[%clk 0:00:10.6]} 59... a3 {[%clk 0:00:20.6]} 60. Kc2 {[%clk 0:00:12]} 60...
Ka1 {[%clk 0:00:21.1]} 61. Rb3 {[%clk 0:00:09]} 61... Ka2 {[%clk 0:00:22.2]} 62.
Rb4 {[%clk 0:00:08.5]} 62... Ka1 {[%clk 0:00:23.4]} 63. Rb3 {[%clk 0:00:09.8]}
63... Ka2 {[%clk 0:00:24.7]} 64. Rb5 {[%clk 0:00:07.5]} 64... b1=Q+ {[%clk
0:00:19.6]} 65. Rxb1 {[%clk 0:00:07.6]} 1/2-1/2

[Event "*** Titled Tuesday Blitz"]
[Site "Chess.com"]
[Date "2019.05.07"]
[Round "4"]
[White "Fins0905"]
[Black "WeAintSurePal"]
[Result "1/2-1/2"]
[WhiteElo "2666"]
[BlackElo "2223"]
[TimeControl "180+2"]
[EndTime "13:58:17 PDT"]
[Termination "Game drawn - insufficient material"]

1. d4 {[%clk 0:03:01.9]} 1... d5 {[%clk 0:02:59.5]} 2. c4 {[%clk 0:03:01.8]}
2... e6 {[%clk 0:03:00.1]} 3. Nc3 {[%clk 0:03:02.7]} 3... Be7 {[%clk 0:03:00.3]}
4. cxd5 {[%clk 0:03:03.8]} 4... exd5 {[%clk 0:03:00.8]} 5. Bf4 {[%clk
0:03:05.3]} 5... c6 {[%clk 0:02:59.3]} 6. Qc2 {[%clk 0:03:05.8]} 6... Bd6 {[%clk
0:02:59.9]} 7. Bg3 {[%clk 0:03:01.8]} 7... Ne7 {[%clk 0:03:00.3]} 8. e3 {[%clk
0:03:01.7]} 8... Bf5 {[%clk 0:02:53.6]} 9. Bd3 {[%clk 0:03:02]} 9... Bxd3 {[%clk
0:02:48.9]} 10. Qxd3 {[%clk 0:03:03.9]} 10... a5 {[%clk 0:02:47.4]} 11. Nge2
{[%clk 0:03:03.2]} 11... O-O {[%clk 0:02:45.9]} 12. O-O {[%clk 0:03:01.2]} 12...
Bxg3 {[%clk 0:02:46.1]} 13. Nxg3 {[%clk 0:02:55.8]} 13... Nd7 {[%clk 0:02:46.7]}
14. Rab1 {[%clk 0:02:54.9]} 14... Nf6 {[%clk 0:02:45.8]} 15. a3 {[%clk
0:02:54.3]} 15... Qd7 {[%clk 0:02:40.9]} 16. Na4 {[%clk 0:02:52.2]} 16... Qd6
{[%clk 0:02:12.8]} 17. Rfc1 {[%clk 0:02:46.8]} 17... h5 {[%clk 0:02:11.3]} 18.
Nc5 {[%clk 0:02:42]} 18... Ra7 {[%clk 0:02:07.7]} 19. Nf5 {[%clk 0:02:09.7]}
19... Nxf5 {[%clk 0:02:08.6]} 20. Qxf5 {[%clk 0:02:11.6]} 20... g6 {[%clk
0:01:58.1]} 21. Qf3 {[%clk 0:02:02]} 21... Re8 {[%clk 0:01:48.5]} 22. Rc2 {[%clk
0:01:50.7]} 22... Kg7 {[%clk 0:01:48.2]} 23. h3 {[%clk 0:01:47.6]} 23... Re7
{[%clk 0:01:48.1]} 24. b4 {[%clk 0:01:19]} 24... axb4 {[%clk 0:01:37.8]} 25.
axb4 {[%clk 0:01:20.9]} 25... Ra8 {[%clk 0:01:23.5]} 26. Nd3 {[%clk 0:00:57]}
26... Ne4 {[%clk 0:01:19.2]} 27. Qf4 {[%clk 0:00:54.9]} 27... Qxf4 {[%clk
0:01:17.6]} 28. Nxf4 {[%clk 0:00:55.1]} 28... Ra3 {[%clk 0:01:16.9]} 29. b5
{[%clk 0:00:47.1]} 29... Nc3 {[%clk 0:01:12.9]} 30. bxc6 {[%clk 0:00:36.3]}
30... bxc6 {[%clk 0:01:08.3]} 31. Rbc1 {[%clk 0:00:29.7]} 31... Na2 {[%clk
0:01:05.5]} 32. Ra1 {[%clk 0:00:22.8]} 32... Nb4 {[%clk 0:00:59.3]} 33. Rxa3
{[%clk 0:00:23.1]} 33... Nxc2 {[%clk 0:01:00.3]} 34. Rb3 {[%clk 0:00:21.2]}
34... Rc7 {[%clk 0:00:27.8]} 35. Rb6 {[%clk 0:00:17.6]} 35... Na3 {[%clk
0:00:26.2]} 36. Nd3 {[%clk 0:00:12.3]} 36... Nc4 {[%clk 0:00:26.8]} 37. Ra6
{[%clk 0:00:13.7]} 37... g5 {[%clk 0:00:12]} 38. Nb4 {[%clk 0:00:13.3]} 38... c5
{[%clk 0:00:12]} 39. dxc5 {[%clk 0:00:07.2]} 39... Rxc5 {[%clk 0:00:12.6]} 40.
Ra7 {[%clk 0:00:06.7]} 40... Rb5 {[%clk 0:00:13.7]} 41. Nc6 {[%clk 0:00:06.5]}
41... Rb1+ {[%clk 0:00:15.2]} 42. Kh2 {[%clk 0:00:07.6]} 42... Rb2 {[%clk
0:00:16.1]} 43. Kg3 {[%clk 0:00:03.8]} 43... h4+ {[%clk 0:00:16.2]} 44. Kf3
{[%clk 0:00:04.2]} 44... Rb6 {[%clk 0:00:15.7]} 45. Nd4 {[%clk 0:00:04.6]} 45...
Rf6+ {[%clk 0:00:16.8]} 46. Ke2 {[%clk 0:00:05.7]} 46... Rb6 {[%clk 0:00:17.1]}
47. Ra2 {[%clk 0:00:06.6]} 47... Nd6 {[%clk 0:00:17]} 48. Rc2 {[%clk 0:00:06]}
48... Ne4 {[%clk 0:00:17.9]} 49. Nf3 {[%clk 0:00:07]} 49... f6 {[%clk
0:00:17.7]} 50. Nd2 {[%clk 0:00:07.9]} 50... Nd6 {[%clk 0:00:18.4]} 51. Rc5
{[%clk 0:00:07.1]} 51... Rb5 {[%clk 0:00:18.4]} 52. Rxb5 {[%clk 0:00:06.8]}
52... Nxb5 {[%clk 0:00:20.3]} 53. Kd3 {[%clk 0:00:08.2]} 53... Kf7 {[%clk
0:00:21.1]} 54. Nf3 {[%clk 0:00:09.6]} 54... Ke6 {[%clk 0:00:22.2]} 55. Nd4+
{[%clk 0:00:10.2]} 55... Nxd4 {[%clk 0:00:23.3]} 56. Kxd4 {[%clk 0:00:11]} 56...
Kd6 {[%clk 0:00:24.7]} 57. e4 {[%clk 0:00:07]} 57... dxe4 {[%clk 0:00:25.7]} 58.
Kxe4 {[%clk 0:00:08.9]} 58... Ke6 {[%clk 0:00:27]} 59. f3 {[%clk 0:00:09.3]}
59... f5+ {[%clk 0:00:27.5]} 60. Kd4 {[%clk 0:00:10.3]} 60... Kd6 {[%clk
0:00:28.9]} 61. Kd3 {[%clk 0:00:08.1]} 61... Kd5 {[%clk 0:00:30.1]} 62. Ke3
{[%clk 0:00:09.2]} 62... Ke5 {[%clk 0:00:31.4]} 63. f4+ {[%clk 0:00:09.7]} 63...
Kf6 {[%clk 0:00:21.5]} 64. fxg5+ {[%clk 0:00:05.9]} 64... Kxg5 {[%clk
0:00:23.4]} 65. Kf3 {[%clk 0:00:07.1]} 65... Kg6 {[%clk 0:00:23.4]} 66. Kf4
{[%clk 0:00:07]} 66... Kf6 {[%clk 0:00:24.1]} 67. g3 {[%clk 0:00:06.8]} 67...
hxg3 {[%clk 0:00:25]} 68. Kxg3 {[%clk 0:00:08.7]} 68... Kg5 {[%clk 0:00:25.9]}
69. h4+ {[%clk 0:00:10]} 69... Kh5 {[%clk 0:00:27.4]} 70. Kf4 {[%clk 0:00:10.7]}
70... Kxh4 {[%clk 0:00:29.3]} 71. Kxf5 {[%clk 0:00:12.1]} 1/2-1/2